bitfinex/quotes_ETHUSD_20240709
["timestamp","ask_amount","ask_price","bid_price","bid_amount"]
[1720498703904,2.4383,3072.1,3071.4,3.80582]
[1720498704075,2.4786,3072.4,3071.5,3.25573]
[1720498704403,2.11170514,3072.3,3071.6,0.55]
[1720498704567,1.12784514,3072.2,3071.6,0.55]
[1720498705187,1.12784514,3072.2,3071.7,3.25543]
[1720498705489,2.4786,3072.7,3071.8,0.55]
[1720498705693,1.12772516,3072.6,3072.1,3.25503]
[1720498705869,2.3281,3073.1,3072.3,3.25481]
[1720498706188,1.12757218,3073.0,3072.4,0.55]
[1720498706387,1.4731394,3072.9,3072.4,3.80475]
[1720498706588,0.34556722,3072.9,3072.5,3.25466]
[1720498706757,0.34556722,3072.9,3072.6,0.55]
[1720498707779,2.3281,3073.1,3072.6,3.80454]
[1720498708085,12.84120002,3073.6,3072.6,3.80454]
[1720498708086,2.3281,3073.4,3072.6,3.80454]
[1720498708287,1.12752359,3073.3,3072.6,3.80454]
[1720498708488,0.34556236,3073.2,3072.6,3.80454]
[1720498708692,1.47308223,3073.2,3072.6,3.80454]
[1720498708892,0.34556236,3073.2,3072.6,3.80454]
[1720498710668,11.74277269,3073.9,3073.4,3.2537]
[1720498710906,2.3374,3074.4,3073.6,3.2535]
[1720498711102,1.12721241,3074.3,3073.6,6.507]
[1720498711304,1.17427727,3074.3,3073.7,0.55]
[1720498711495,1.17427727,3074.3,3073.7,3.8034]
[1720498711693,0.35116773,3074.2,3073.7,3.8034]
[1720498712281,0.35116773,3074.2,3073.7,0.55]
[1720498712481,0.35116773,3074.2,3073.5,0.55]
[1720498713209,0.35116773,3074.2,3073.7,3.25332]
[1720498713374,0.35116773,3074.2,3073.8,0.55]
[1720498714415,0.35116773,3074.2,3073.8,3.80327]
[1720498714591,2.3374,3074.4,3073.8,0.55]
[1720498714916,7.36,3074.8,3074.0,3.25307]
[1720498714917,9.7463,3074.8,3074.0,3.25307]
[1720498715119,2.3863,3074.8,3074.1,0.55]
[1720498715474,2.3863,3074.8,3074.1,3.80297]
[1720498715811,0.49842921,3074.7,3074.1,3.80297]
[1720498716397,0.49842921,3074.7,3074.2,3.2528]
[1720498716602,0.49842921,3074.7,3074.3,0.55]
[1720498716815,0.49842921,3074.7,3074.3,3.80276]
[1720498719484,0.49842921,3074.7,3074.4,3.25266]
[1720498719718,0.49842921,3074.7,3074.5,0.55]
[1720498720791,0.49842921,3074.7,3074.5,3.80254]
[1720498721719,2.3885,3075.2,3074.5,3.80254]
[1720498721921,5.3885,3075.2,3074.5,3.80254]
[1720498722590,2.3885,3075.2,3074.5,3.80254]
[1720498726700,2.3885,3075.2,3074.6,3.25244]
[1720498726890,2.3885,3075.2,3074.7,0.55]
[1720498727089,0.23885,3075.1,3074.7,0.55]
[1720498729817,0.23885,3075.1,3074.5,3.80248]
[1720498733314,2.3885,3075.2,3074.5,3.80248]
[1720498733518,2.4207,3075.6,3074.5,3.80248]
[1720498734354,2.4207,3075.6,3074.7,3.25224]
[1720498734510,2.4207,3075.6,3074.8,0.55]
[1720498735635,2.4207,3075.6,3074.8,3.80224]
[1720498736403,2.96277,3075.6,3074.8,3.80224]
[1720498736733,3.8978,3076.0,3075.1,3.25185]
[1720498736937,3.8978,3076.0,3075.2,3.80181]
[1720498737644,3.8978,3076.0,3075.3,3.25163]
[1720498737937,2.3978,3076.0,3075.5,3.25148]
[1720498738097,2.3978,3076.0,3075.6,0.55]
[1720498738531,2.89737921,3076.0,3075.6,0.55]
[1720498739635,10.36,3076.5,3075.6,0.55]
[1720498739824,6.44473813,3076.4,3075.6,0.55]
[1720498740025,1.12643813,3076.3,3075.6,3.80139]
[1720498740230,1.12643053,3076.2,3075.6,3.80139]
[1720498740431,5.65868237,3076.4,3075.6,3.80139]
[1720498740432,1.12642982,3076.1,3075.6,3.80139]
[1720498740632,0.34038237,3076.4,3075.8,3.25115]
[1720498740830,0.34038237,3076.4,3075.9,3.80107]
[1720498741871,0.34038237,3076.4,3076.0,2.4544]
[1720498742136,0.34038237,3076.4,3076.3,6.5013]
[1720498742336,0.34038237,3076.4,3076.3,7.0513]
[1720498742841,1e-08,3076.4,3076.3,7.0513]
[1720498743241,1e-08,3076.4,3076.3,10.30195]
[1720498743452,7.36,3077.7,3076.8,2.4094]
[1720498743741,7.36,3078.2,3077.5,3.24936]
[1720498743913,2.3046,3078.4,3077.5,3.24936]
[1720498744109,2.3046,3078.4,3077.6,0.55]
[1720498744317,0.42816,3078.3,3077.6,0.55]
[1720498744739,9.95799206,3078.7,3077.9,3.24893]
[1720498744740,2.59799206,3078.7,3077.9,3.24893]
[1720498744942,2.59799206,3078.7,3078.2,3.24864]
[1720498745242,0.05472148,3079.3,3078.3,0.55]
[1720498745243,0.005,3079.3,3078.3,0.55]
[1720498745444,0.005,3079.3,3078.6,3.24812]
[1720498745651,0.005,3079.3,3078.9,3.24781]
[1720498745857,0.005,3079.3,3079.2,3.24759]
[1720498746023,0.005,3079.3,3079.2,7.04518]
[1720498746438,0.005,3079.6,3079.5,6.49456]
[1720498746721,0.005,3079.6,3079.5,7.04456]
[1720498747324,1.115,3080.2,3080.1,6.49328]
[1720498747619,0.73214823,3080.2,3080.1,8.19028]
[1720498747847,5.62e-06,3080.2,3080.1,11.43692]
[1720498748051,5.62e-06,3080.2,3080.1,14.89557281]
[1720498748426,5.62e-06,3080.2,3080.1,14.98692]
[1720498748654,5.62e-06,3080.2,3080.1,13.74857281]
[1720498749555,5.62e-06,3080.2,3080.1,10.04328]
[1720498749858,5.62e-06,3080.2,3080.1,3.79664]
[1720498750155,5.62e-06,3080.2,3079.4,2.256]
[1720498750355,5.62e-06,3080.2,3079.8,3.24692]
[1720498750522,5.62e-06,3080.2,3079.6,3.24717]
[1720498750523,5.62e-06,3080.2,3079.9,3.24681]
[1720498750728,5.62e-06,3080.2,3079.6,3.24717]
[1720498750926,5.62e-06,3080.2,3079.3,3.24738]
[1720498751574,5.62e-06,3080.2,3079.4,3.24738]
[1720498751735,5.62e-06,3080.2,3078.8,3.24792]
[1720498751935,5.62e-06,3080.2,3078.9,3.2479]
[1720498752155,5.62e-06,3080.2,3078.6,3.24822]
[1720498752156,2.3912,3080.1,3078.3,2.4676]
[1720498752363,0.29381419,3080.0,3078.8,3.248]
[1720498752572,0.24409271,3080.0,3078.7,3.24811]
[1720498752897,5.62e-06,3080.2,3078.8,0.06494995]
[1720498753030,5.62e-06,3080.2,3079.2,3.24757]
[1720498753245,5.62e-06,3080.2,3080.0,3.24669]
[1720498753491,5.62e-06,3080.2,3079.5,3.24717]
[1720498753970,5.62e-06,3080.2,3078.9,3.2479]
[1720498754341,5.62e-06,3080.2,3079.2,3.24759]
[1720498754541,0.24889056,3080.1,3079.2,3.24759]
[1720498754742,5.62e-06,3080.2,3079.7,3.24703]
[1720498754980,5.62e-06,3080.2,3080.1,3.24664]
[1720498755476,5.62e-06,3080.2,3080.1,7.04328]
[1720498756565,5.62e-06,3080.2,3080.1,10.28992]
[1720498756768,2.22,3080.6,3080.5,6.49244]
[1720498757389,2.22,3080.6,3080.5,9.73866]
[1720498757758,2.22,3080.6,3080.5,6.49244]
[1720498757952,2.22,3080.6,3080.5,9.73866]
[1720498758352,2.22,3080.6,3080.5,6.49244]
[1720498758556,2.22,3080.6,3080.5,3.24622]
[1720498759082,2.22,3080.6,3080.5,9.73866]
[1720498759383,2.775,3080.7,3080.6,9.73836]
[1720498759757,2.775,3080.7,3080.6,6.49224]
[1720498759954,2.775,3080.7,3080.6,7.04224]
[1720498761698,2.775,3080.7,3080.5,3.24618]
[1720498762102,2.775,3080.7,3080.3,3.24643]
[1720498762103,2.775,3080.7,3080.1,3.24655]
[1720498762276,2.775,3080.7,3080.2,3.24652]
[1720498762476,3.441,3080.7,3079.4,7.82456132]
[1720498762677,2.775,3080.7,3080.2,3.24654]
[1720498762995,2.775,3080.7,3080.3,0.06491964]
[1720498763174,2.775,3080.7,3080.6,3.24612]
[1720498763374,1.5697164,3080.7,3080.6,6.49224]
[1720498764112,1.5697164,3080.7,3080.6,0.55]
[1720498765763,1.5697164,3080.7,3080.6,3.79612]
[1720498767604,1.5697164,3080.7,3080.6,0.55]
[1720498767771,1.5697164,3080.7,3080.4,0.55]
[1720498767973,1.5697164,3080.7,3080.4,3.79632]
[1720498768212,1.5697164,3080.7,3080.6,3.24612]
[1720498768421,1.5697164,3080.7,3080.6,3.79612]
[1720498769213,1.5697164,3080.7,3080.6,0.55]
[1720498769397,1.5697164,3080.7,3080.5,3.79621]
[1720498770002,1.5697164,3080.7,3080.5,0.55]
[1720498770180,1.5697164,3080.7,3080.6,3.24612]
[1720498770499,1.5697164,3080.7,3080.6,3.79612]
[1720498771279,1.5697164,3080.7,3080.6,7.10715408]
[1720498771480,1.665,3080.8,3080.7,6.49202]
[1720498771701,1.665,3080.8,3080.7,10.28803]
[1720498772219,2.22,3080.9,3080.8,9.73773]
[1720498772380,2.22,3080.9,3080.8,13.28773]
[1720498772799,2.22,3080.9,3080.8,7.04182]
[1720498773000,2.22,3080.9,3080.8,10.28773]
[1720498773753,0.555,3081.1,3080.9,6.4916]
[1720498774028,0.555,3081.1,3080.9,12.9832]
[1720498774325,0.555,3081.1,3080.9,13.5332]
[1720498774693,0.555,3081.1,3080.9,7.0416]
[1720498777227,0.555,3081.1,3080.9,10.2874]
[1720498778403,0.555,3081.1,3080.9,6.4916]
[1720498779007,0.555,3081.1,3080.9,3.2458]
[1720498779209,0.555,3081.1,3080.7,3.24598]
[1720498779542,0.555,3081.1,3080.5,3.24622]
[1720498779835,0.555,3081.1,3079.8,9.8202]
[1720498779836,2.2255,3081.0,3080.2,3.24646]
[1720498780039,2.52362148,3080.9,3079.2,7.44]
[1720498780239,2.256,3080.4,3079.2,3.24758]
[1720498780444,2.256,3080.4,3078.5,3.24826]
[1720498780445,2.52362148,3080.7,3079.3,3.24746]
[1720498780612,5.52362148,3080.7,3079.3,3.24746]
[1720498781041,5.52362148,3080.7,3079.4,0.06493866]
[1720498781042,2.4739,3080.7,3079.4,0.06493866]
[1720498781247,2.4739,3080.7,3080.1,3.24663]
[1720498781838,2.4739,3080.7,3079.9,3.24684]
[1720498782049,2.4739,3080.7,3080.0,3.24669]
[1720498782254,2.4739,3080.7,3080.1,3.24664]
[1720498782541,2.4739,3080.7,3080.2,0.61492279]
[1720498782752,1.79581345,3080.7,3080.2,0.55]
[1720498783338,1.79581345,3080.7,3079.9,3.24684]
[1720498783339,1.79581345,3080.7,3080.0,0.55]
[1720498783753,1.9753948,3080.7,3079.6,3.24715]
[1720498783914,1.9753948,3080.7,3079.7,3.24706]
[1720498784116,1.9753948,3080.7,3079.5,3.24721]
[1720498784322,1.9753948,3080.7,3079.6,3.2471]
[1720498784525,0.19753948,3080.6,3079.6,3.2471]
[1720498784843,0.19753948,3080.6,3079.6,3.24708]
[1720498785045,0.19753948,3080.6,3079.7,3.79706]
[1720498785571,0.19753948,3080.6,3079.7,0.55]
[1720498785711,1.79581345,3080.7,3079.3,3.24748]
[1720498785712,0.19933529,3080.5,3079.3,3.24748]
[1720498785917,1.79581345,3080.7,3079.5,3.24727]
[1720498786953,1.84553493,3080.7,3079.3,3.24748]
[1720498787246,1.84553493,3080.7,3079.4,0.55]
[1720498787247,1.12492575,3080.6,3079.4,0.55]
[1720498787416,2.37422148,3080.5,3079.0,3.24778]
[1720498787735,2.3245,3080.5,3079.9,3.24678]
[1720498787931,2.3245,3080.5,3079.5,3.24726]
[1720498788148,2.55695,3080.5,3079.4,3.24737]
[1720498788524,2.55695,3080.5,3079.6,3.24708]
[1720498788737,2.3245,3080.5,3079.6,3.24708]
[1720498789245,2.3245,3080.5,3079.8,3.24688]
[1720498789421,2.3245,3080.5,3079.9,3.24685]
[1720498789630,2.3245,3080.5,3080.0,0.06492761]
[1720498789825,2.3245,3080.5,3080.1,0.55]
[1720498790126,2.3245,3080.5,3080.0,0.55]
[1720498790331,2.3245,3080.5,3079.9,0.55]
[1720498790912,2.55695,3080.5,3079.4,3.24735]
[1720498791116,2.55695,3080.5,3079.5,3.24727]
[1720498791344,2.3245,3080.5,3079.8,3.24693]
[1720498792059,2.3245,3080.5,3079.7,3.24706]
[1720498792351,2.3245,3080.5,3079.8,0.55]
[1720498792716,2.3245,3080.5,3079.3,3.90893833]
[1720498792919,2.55695,3080.5,3079.5,3.24719]
[1720498793748,2.55695,3080.5,3079.0,0.66147833]
[1720498793749,0.04972148,3080.4,3079.0,0.66147833]
[1720498793950,0.26066715,3080.3,3079.0,3.24772]
[1720498794549,0.26066715,3080.3,3078.9,3.2479]
[1720498794550,2.4549,3080.1,3078.8,3.24798]
[1720498794750,2.4549,3080.1,3078.7,3.24811]
[1720498794751,0.04972148,3080.0,3078.7,3.24811]
[1720498794929,0.25046215,3079.9,3078.5,3.24827]
[1720498795244,2.4549,3079.8,3078.4,3.24843]
[1720498795449,0.27053622,3079.7,3078.4,3.24843]
[1720498795628,0.27053622,3079.7,3078.3,3.24854]
[1720498795819,2.4549,3079.5,3077.8,0.66865712]
[1720498796019,2.4549,3079.5,3078.0,3.24876]
[1720498796421,0.04972148,3079.4,3077.8,3.24904]
[1720498796757,2.4549,3079.3,3077.8,3.249]
[1720498796947,0.25046215,3079.2,3078.0,3.24886]
[1720498797461,0.25046215,3079.2,3077.8,3.249]
[1720498797821,0.30018363,3079.2,3077.9,3.24894]
[1720498798014,0.27550836,3079.1,3077.9,3.24894]
[1720498798228,2.4549,3079.3,3078.0,3.24884]
[1720498799046,2.4549,3079.3,3078.1,0.55]
[1720498799462,0.04972148,3079.2,3078.1,0.55]
[1720498799777,2.2867,3079.0,3076.8,7.44]
[1720498799931,4.59242148,3078.9,3077.3,3.24952]
[1720498800135,0.45924215,3078.8,3077.3,3.24952]
[1720498800368,0.04972148,3078.7,3077.3,3.24952]
[1720498800565,0.45924215,3078.8,3077.4,3.24947]
[1720498801356,2.2867,3078.9,3077.8,3.24906]
[1720498801585,2.2867,3078.9,3078.0,3.24881]
[1720498801889,2.2867,3078.9,3078.1,3.24872]
[1720498802047,2.2867,3078.9,3078.2,0.55]
[1720498802647,2.2867,3078.9,3077.9,0.55]
[1720498802956,2.2867,3078.9,3078.1,3.24875]
[1720498803159,2.2867,3078.9,3078.2,0.55]
[1720498803781,2.2867,3078.9,3078.3,3.31343732]
[1720498803940,2.2867,3078.9,3078.4,0.55]
[1720498804475,2.2867,3078.9,3078.5,0.06496098]
[1720498804642,2.2867,3078.9,3078.6,0.55]
[1720498805664,2.2867,3078.9,3078.3,3.79853]
[1720498805939,2.2867,3078.9,3078.4,3.24841]
[1720498806145,2.2867,3078.9,3078.5,3.79823]
[1720498806869,2.2867,3078.9,3078.5,0.55]
[1720498807080,2.2867,3078.9,3078.2,0.55]
[1720498807250,2.2867,3078.9,3077.5,3.2493]
[1720498807251,0.04972148,3078.8,3077.5,3.2493]
[1720498807464,0.04972148,3078.8,3077.6,3.24926]
[1720498807778,2.2867,3078.9,3077.9,3.24891]
[1720498808269,2.2867,3078.9,3078.0,3.24879]
[1720498808448,2.2867,3078.9,3078.0,3.24883]
[1720498808653,2.2867,3078.9,3077.9,3.24891]
[1720498808854,0.04972148,3078.8,3077.7,3.24917]
[1720498809495,2.51537,3078.9,3077.7,3.24917]
[1720498809663,2.51537,3078.9,3077.9,3.24894]
[1720498809840,2.51537,3078.9,3078.0,3.24883]
[1720498810950,2.2867,3078.9,3078.1,0.55]
[1720498811140,2.2867,3078.9,3078.1,3.79874]
[1720498811759,2.2867,3078.9,3078.2,3.24863]
[1720498811941,2.2867,3078.9,3078.3,0.55]
[1720498813565,2.2867,3078.9,3078.1,0.55]
[1720498813945,2.51537,3078.9,3078.1,3.79874]
[1720498815445,2.2867,3078.9,3078.1,3.79874]
[1720498815648,2.2867,3078.9,3078.2,3.2486]
[1720498815942,2.2867,3078.9,3078.3,0.55]
[1720498816355,2.2867,3078.9,3078.2,0.55]
[1720498817023,2.2867,3078.9,3078.1,0.55]
[1720498818045,2.2867,3078.9,3078.0,0.55]
[1720498818382,2.51537,3078.9,3078.0,0.55]
[1720498818545,0.04972148,3078.8,3077.8,3.79905]
[1720498818742,0.04972148,3078.8,3077.8,0.55]
[1720498818948,0.04972148,3078.8,3077.5,3.24935]
[1720498818949,2.3597,3078.7,3077.1,10.68974]
[1720498819189,2.3597,3078.7,3077.1,3.24974]
[1720498819190,3.53507307,3078.6,3077.1,3.24974]
[1720498819532,1.12565389,3078.5,3077.2,3.24969]
[1720498819706,2.40942148,3078.6,3077.2,3.24969]
[1720498819707,0.40322902,3078.4,3077.2,3.24969]
[1720498820306,0.35350754,3078.4,3077.4,3.24942]
[1720498820467,2.3597,3078.6,3077.5,0.06497457]
[1720498820672,2.3597,3078.6,3077.8,3.24905]
[1720498821487,2.3597,3078.6,3077.9,0.55]
[1720498822349,2.3597,3078.6,3077.7,0.61497453]
[1720498822550,2.3597,3078.6,3078.0,3.24879]
[1720498822749,2.3597,3078.6,3078.1,0.55]
[1720498823676,2.3597,3078.6,3078.1,3.79874]
[1720498828075,2.3597,3078.6,3078.1,3.79869]
[1720498828293,2.3597,3078.6,3078.1,0.55]
[1720498828688,2.59567,3078.6,3078.1,0.55]
[1720498828982,2.59567,3078.6,3077.8,3.79899]
[1720498828983,1.12542408,3078.5,3077.8,3.79899]
[1720498829284,2.59567,3078.6,3077.8,3.79899]
[1720498829453,1.12550535,3078.5,3077.8,3.79899]
[1720498829668,2.59567,3078.6,3077.8,3.79899]
[1720498829868,2.59567,3078.6,3077.8,0.55]
[1720498829869,1.38509689,3078.5,3077.8,0.55]
[1720498830096,1.12552989,3078.4,3077.7,3.79917]
[1720498830298,1.12552989,3078.4,3077.7,0.55]
[1720498830975,1.12552989,3078.4,3077.7,3.79917]
[1720498831180,1.50000958,3078.4,3077.7,0.55]
[1720498831387,1.12552989,3078.3,3077.5,3.24937]
[1720498831607,1.12559107,3078.2,3077.6,3.24918]
[1720498831776,0.37447969,3078.4,3077.6,3.24918]
[1720498832101,0.06314653,3078.3,3077.5,3.24938]
[1720498832486,1.12555445,3078.2,3077.6,0.55]
[1720498832807,1.12555445,3078.1,3077.6,0.55]
[1720498833010,1.18863633,3078.1,3077.6,0.55]
[1720498833175,3.52547593,3078.0,3077.1,3.24974]
[1720498833370,1.12555445,3077.9,3076.9,3.24995]
[1720498833587,2.75877726,3078.0,3076.9,3.24995]
[1720498833588,0.06312448,3077.8,3076.9,3.24995]
[1720498833786,2.75877726,3078.0,3077.0,3.24987]
[1720498833978,1.17543116,3077.9,3077.1,3.24974]
[1720498834172,0.04972148,3077.9,3077.1,3.24974]
[1720498834384,0.38844869,3077.9,3077.0,3.24987]
[1720498834587,0.38844869,3077.9,3077.1,3.7998]
[1720498835079,0.38844869,3077.9,3077.1,0.55]
[1720498835331,0.27386487,3077.8,3077.1,0.55]
[1720498835530,0.27386487,3077.8,3076.7,3.2502]
[1720498835531,0.04972148,3077.7,3076.7,3.2502]
[1720498835905,2.4222,3077.5,3076.7,3.2502]
[1720498836189,2.47192148,3077.5,3076.7,3.2502]
[1720498836503,0.04972148,3077.4,3076.6,3.25032]
[1720498836704,0.04972148,3077.4,3076.5,3.25043]
[1720498836705,0.29691363,3077.4,3076.5,3.25043]
[1720498837011,0.29691363,3077.4,3076.3,3.25064]
[1720498837012,1.18841856,3077.3,3076.3,3.25064]
[1720498837305,1.17571143,3077.2,3076.3,3.25064]
[1720498837470,0.06246374,3077.3,3076.4,3.25052]
[1720498837671,2.4211,3077.0,3076.0,3.25087]
[1720498837976,2.4211,3077.0,3075.6,0.35525572]
[1720498837977,2.4211,3077.0,3076.1,3.25078]
[1720498838178,0.06223424,3076.9,3076.1,3.25078]
[1720498838392,2.4211,3077.0,3076.1,3.25078]
[1720498838800,0.06247059,3076.9,3076.1,3.25078]
[1720498838976,2.4211,3077.0,3076.1,3.25078]
[1720498839175,0.06247059,3076.9,3075.9,3.25101]
[1720498839377,2.71293148,3077.0,3075.9,3.25101]
[1720498839809,0.06247001,3076.9,3075.9,3.25101]
[1720498839989,0.04972148,3076.9,3076.0,0.55]
[1720498840187,0.0620185,3076.8,3075.6,3.25139]
[1720498840599,2.43042148,3076.7,3075.4,3.25153]
[1720498840804,2.3456,3076.5,3075.4,3.25153]
[1720498841112,0.04972148,3076.4,3075.4,3.25153]
[1720498841283,0.11169097,3076.4,3075.4,3.25153]
[1720498841484,0.11169097,3076.4,3075.5,3.2515]
[1720498841876,0.06196949,3076.4,3075.5,3.2515]
[1720498842083,2.3456,3076.5,3075.5,3.2515]
[1720498842282,0.06151787,3076.3,3075.5,3.2515]
[1720498842580,0.06151787,3076.3,3075.2,3.25175]
[1720498842794,2.3688,3076.3,3075.0,3.25194]
[1720498842990,2.3688,3076.3,3074.9,3.25211]
[1720498842991,0.06158114,3076.2,3074.9,3.25211]
[1720498843192,0.32440958,3076.2,3075.1,3.25184]
[1720498843588,0.32440958,3076.2,3075.2,3.25181]
[1720498843814,0.32440958,3076.2,3075.5,3.25148]
[1720498843815,0.06158114,3076.2,3075.5,3.25148]
[1720498844584,0.06158114,3076.2,3075.6,3.25139]
[1720498844982,0.06158114,3076.2,3075.7,0.55]
[1720498846689,0.06158114,3076.2,3075.8,3.31616172]
[1720498846890,2.2971,3076.7,3075.9,0.55]
[1720498847099,0.06167793,3076.1,3076.0,6.56694667]
[1720498847300,2.2971,3076.7,3076.0,6.56694667]
[1720498847301,2.2971,3076.7,3076.3,3.25063]
[1720498847507,2.2971,3076.7,3076.4,0.55]
[1720498848098,2.2971,3076.7,3076.2,0.55]
[1720498848416,2.52681,3076.7,3076.2,0.55]
[1720498848722,2.2971,3076.7,3076.2,0.55]
[1720498849098,2.2971,3076.7,3075.8,3.25118]
[1720498849099,2.2971,3076.7,3075.9,0.55]
[1720498849392,2.2971,3076.7,3075.8,3.25118]
[1720498849586,2.2971,3076.7,3075.9,3.25107]
[1720498849804,2.2971,3076.7,3076.1,3.25084]
[1720498850486,0.06195978,3076.6,3076.1,3.25084]
[1720498850898,0.06195978,3076.6,3076.0,3.31589631]
[1720498850899,0.06195978,3076.6,3076.0,3.25088]
[1720498851084,0.06195978,3076.6,3076.1,0.55]
[1720498851392,2.2971,3076.7,3076.1,0.55]
[1720498851584,2.2971,3076.7,3075.8,3.25116]
[1720498851585,0.22971,3076.6,3076.0,3.25094]
[1720498851787,2.2971,3076.7,3076.1,0.55]
[1720498852015,2.2971,3076.7,3075.9,3.80101]
[1720498852218,0.0620097,3076.6,3075.9,0.55]
[1720498852600,2.2971,3076.7,3075.7,0.55]
[1720498852796,0.23591097,3076.5,3075.7,0.55]
[1720498853211,0.23591097,3076.5,3075.5,3.25148]
[1720498853212,0.23591097,3076.5,3075.6,0.55]
[1720498853522,0.23591097,3076.5,3075.8,3.25118]
[1720498853712,0.23591097,3076.5,3075.9,0.55]
[1720498853908,0.06197509,3076.4,3075.6,0.55]
[1720498854090,0.23591097,3076.5,3075.6,3.80139]
[1720498854292,0.06195857,3076.3,3075.6,3.80139]
[1720498854524,0.23591097,3076.5,3075.6,3.80139]
[1720498854935,0.06202562,3076.4,3075.7,3.25128]
[1720498855246,2.2971,3076.7,3075.8,0.55]
[1720498855400,0.06195116,3076.3,3075.8,0.55]
[1720498855605,2.2971,3076.7,3075.8,0.55]
[1720498855818,0.06196148,3076.6,3075.7,0.55]
[1720498856038,2.2971,3076.7,3075.7,3.80129]
[1720498856237,0.06196382,3076.5,3075.7,3.80129]
[1720498856536,0.29170617,3076.6,3075.7,3.80129]
[1720498856736,0.06193147,3076.4,3075.7,3.80129]
[1720498856938,0.06198117,3076.5,3075.7,3.80129]
[1720498857105,0.22971,3076.6,3075.7,3.80129]
[1720498857305,0.06198351,3076.4,3075.7,3.80129]
[1720498857621,0.22971,3076.6,3075.7,3.80129]
[1720498857814,2.2971,3076.7,3075.7,3.80129]
[1720498858020,0.22971,3076.6,3075.7,3.80129]
[1720498858228,0.29175821,3076.6,3075.7,3.80129]
[1720498858741,0.06204821,3076.6,3075.8,3.2511]
[1720498858907,0.06204821,3076.6,3076.0,3.25097]
[1720498859112,2.2971,3076.7,3076.0,3.25097]
[1720498859314,0.06189367,3076.5,3076.1,0.55]
[1720498859510,2.2971,3076.7,3076.1,0.55]
[1720498860038,0.06192385,3076.6,3076.1,0.55]
[1720498860253,2.2971,3076.7,3076.1,0.55]
[1720498860410,0.0618915,3076.5,3076.1,0.55]
[1720498860812,2.2971,3076.7,3076.1,0.55]
[1720498861117,2.2971,3076.7,3076.0,0.55]
[1720498861118,0.29166651,3076.6,3076.0,0.55]
[1720498861310,0.22971,3076.6,3076.0,3.80093]
[1720498861512,2.2971,3076.7,3076.0,0.55]
[1720498861712,0.06195683,3076.5,3076.0,0.55]
[1720498861942,2.2971,3076.7,3076.0,0.55]
[1720498862239,0.06198918,3076.6,3076.0,0.55]
[1720498862609,2.2971,3076.7,3076.0,0.55]
[1720498862812,0.06198918,3076.6,3076.0,0.55]
[1720498863248,0.23590892,3076.6,3075.7,3.80122]
[1720498863540,2.2971,3076.7,3075.8,3.25118]
[1720498863711,2.2971,3076.7,3075.9,0.55]
[1720498863907,0.06196741,3076.6,3075.9,0.55]
[1720498864142,2.2971,3076.7,3076.0,3.25094]
[1720498864329,2.3379,3077.2,3076.5,3.25042]
[1720498864530,2.3379,3077.2,3076.9,3.25]
[1720498864850,2.3379,3077.7,3077.1,3.24981]
[1720498865031,2.3379,3077.7,3077.2,0.61498711]
[1720498865673,2.4694,3078.2,3077.5,3.24937]
[1720498865977,2.4694,3078.2,3077.6,0.55]
[1720498866313,2.4694,3078.2,3077.5,3.24938]
[1720498866518,0.04972148,3078.1,3076.6,3.25031]
[1720498866741,1.12581249,3078.0,3077.0,3.24991]
[1720498867043,1.12581249,3077.9,3077.1,0.55]
[1720498867229,1.48010349,3078.0,3077.1,0.55]
[1720498867430,3.59783397,3077.9,3077.1,0.55]
[1720498867741,1.12581249,3077.8,3076.8,0.55]
[1720498868041,1.52102499,3077.8,3076.9,3.24995]
[1720498868240,0.04972148,3077.7,3077.0,0.55]
[1720498868444,0.04972148,3077.7,3076.8,0.55]
[1720498868610,2.2845,3077.6,3076.3,3.60064866]
[1720498868811,1.40912081,3077.5,3076.1,3.25078]
[1720498869016,1.40912081,3077.5,3075.7,0.35007866]
[1720498869017,2.2845,3077.3,3075.8,3.25109]
[1720498869330,2.2845,3077.1,3075.8,3.25109]
[1720498869552,2.4886,3076.9,3075.6,3.25139]
[1720498869714,2.4886,3076.9,3075.5,3.25148]
[1720498869715,1.17591604,3076.8,3075.5,3.25148]
[1720498870045,1.12619456,3076.7,3075.5,3.25148]
[1720498870212,0.33998148,3076.8,3075.5,3.25148]
[1720498870416,1.4141219,3076.7,3075.7,3.25128]
[1720498870617,0.2878303,3076.7,3075.7,3.25128]
[1720498871417,0.2878303,3076.7,3075.8,0.55]
[1720498871614,0.2878303,3076.7,3075.8,0.61501729]
[1720498871813,0.33998148,3076.8,3076.3,3.25065]
[1720498872011,0.33998148,3076.8,3076.6,3.25033]
[1720498872217,0.33998148,3076.8,3076.7,3.80023]
[1720498872661,0.33998148,3076.8,3076.7,7.05046]
[1720498872825,2.2999,3077.8,3077.3,3.24959]
[1720498873015,2.2999,3077.8,3077.4,0.55]
[1720498873368,0.3399115,3077.7,3077.5,3.24937]
[1720498873544,0.3399115,3077.7,3077.6,0.55]
[1720498873935,0.3399115,3077.7,3077.5,0.55]
[1720498874344,0.3399115,3077.7,3077.3,0.55]
[1720498874345,2.4205,3077.6,3077.3,0.55]
[1720498874522,2.4205,3077.6,3077.1,0.55]
[1720498874739,2.4205,3077.6,3077.2,3.2497]
[1720498874929,2.4205,3077.6,3077.3,0.55]
[1720498876120,0.3399115,3077.7,3077.3,3.79958]
[1720498876816,0.3399115,3077.7,3077.3,0.55]
[1720498877032,0.3399115,3077.7,3077.2,0.55]
[1720498877645,2.428,3077.6,3076.6,3.25025]
[1720498877847,2.428,3077.6,3076.3,3.25064]
[1720498877848,0.04972148,3077.5,3076.3,3.25064]
[1720498878076,0.04972148,3077.5,3075.6,10.26188989]